Workbook

Sheet Einzelpersonen
B1: Simulation Schokotest (Einzelpersonen)
A3: 30 Nullschmecker führen einen Permutationstest durch
H4: Treffer | M4: Anzahl der Treffer
H5: Summe | O5: Mittel -> | P5: =SUM($P$7:$P$11*$O$7:$O$11) -> 1.033333333 | Q5: Treffer
C6: 1 | D6: 2 | E6: 3 | F6: 4 | H6: =SUM(H7:H106) -> 9 | I6: =SUM(I7:I106) -> 8 | J6: =SUM(J7:J106) -> 9 | K6: =SUM(K7:K106) -> 5 | M6: =SUM(M7:M106) -> 31 | P6: rel. Hfgk.
A7: 1 | C7: =ZufallsPermutation(C$6,D$6,E$6,F$6) -> 1 | D7: 4 | E7: 3 | F7: 2 | H7: =IF(C$6=C7,1,0) -> 1 | I7: =IF(D$6=D7,1,0) -> 0 | J7: =IF(E$6=E7,1,0) -> 1 | K7: =IF(F$6=F7,1,0) -> 0 | M7: =SUM(H7:K7) -> 2 | O7: 0 | P7: =FREQUENCY(Treffersumme,O7:O11)/COUNT(Treffersumme) -> 0.3333333333 | Q7: =FREQUENCY(Treffersumme,O7:O11) -> 10
A8: 2 | C8: =ZufallsPermutation(C$6,D$6,E$6,F$6) -> 1 | D8: 2 | E8: 4 | F8: 3 | H8: =IF(C$6=C8,1,0) -> 1 | I8: =IF(D$6=D8,1,0) -> 1 | J8: =IF(E$6=E8,1,0) -> 0 | K8: =IF(F$6=F8,1,0) -> 0 | M8: 2 | O8: 1 | P8: 0.3666666667 | Q8: 11
A9: 3 | C9: =ZufallsPermutation(C$6,D$6,E$6,F$6) -> 3 | D9: 1 | E9: 2 | F9: 4 | H9: 0 | I9: 0 | J9: 0 | K9: 1 | M9: 1 | O9: 2 | P9: 0.2666666667 | Q9: 8
A10: 4 | C10: =ZufallsPermutation(C$6,D$6,E$6,F$6) -> 4 | D10: 3 | E10: 2 | F10: 1 | H10: 0 | I10: 0 | J10: 0 | K10: 0 | M10: 0 | O10: 3 | P10: 0 | Q10: 0
A11: 5 | C11: =ZufallsPermutation(C$6,D$6,E$6,F$6) -> 1 | D11: 2 | E11: 3 | F11: 4 | H11: 1 | I11: 1 | J11: 1 | K11: 1 | M11: 4 | O11: 4 | P11: 0.03333333333 | Q11: 1
A12: 6 | C12: =ZufallsPermutation(C$6,D$6,E$6,F$6) -> 3 | D12: 2 | E12: 4 | F12: 1 | H12: 0 | I12: 1 | J12: 0 | K12: 0 | M12: 1
A13: 7 | C13: =ZufallsPermutation(C$6,D$6,E$6,F$6) -> 2 | D13: 3 | E13: 1 | F13: 4 | H13: 0 | I13: 0 | J13: 0 | K13: 1 | M13: 1
A14: 8 | C14: =ZufallsPermutation(C$6,D$6,E$6,F$6) -> 2 | D14: 1 | E14: 4 | F14: 3 | H14: 0 | I14: 0 | J14: 0 | K14: 0 | M14: 0
A15: 9 | C15: =ZufallsPermutation(C$6,D$6,E$6,F$6) -> 1 | D15: 4 | E15: 3 | F15: 2 | H15: 1 | I15: 0 | J15: 1 | K15: 0 | M15: 2
A16: 10 | C16: =ZufallsPermutation(C$6,D$6,E$6,F$6) -> 2 | D16: 1 | E16: 3 | F16: 4 | H16: 0 | I16: 0 | J16: 1 | K16: 1 | M16: 2
A17: 11 | C17: =ZufallsPermutation(C$6,D$6,E$6,F$6) -> 3 | D17: 1 | E17: 4 | F17: 2 | H17: 0 | I17: 0 | J17: 0 | K17: 0 | M17: 0
A18: 12 | C18: =ZufallsPermutation(C$6,D$6,E$6,F$6) -> 1 | D18: 3 | E18: 4 | F18: 2 | H18: 1 | I18: 0 | J18: 0 | K18: 0 | M18: 1
A19: 13 | C19: =ZufallsPermutation(C$6,D$6,E$6,F$6) -> 1 | D19: 2 | E19: 4 | F19: 3 | H19: 1 | I19: 1 | J19: 0 | K19: 0 | M19: 2
A20: 14 | C20: =ZufallsPermutation(C$6,D$6,E$6,F$6) -> 1 | D20: 3 | E20: 4 | F20: 2 | H20: 1 | I20: 0 | J20: 0 | K20: 0 | M20: 1
A21: 15 | C21: =ZufallsPermutation(C$6,D$6,E$6,F$6) -> 2 | D21: 4 | E21: 1 | F21: 3 | H21: 0 | I21: 0 | J21: 0 | K21: 0 | M21: 0
A22: 16 | C22: =ZufallsPermutation(C$6,D$6,E$6,F$6) -> 2 | D22: 3 | E22: 1 | F22: 4 | H22: 0 | I22: 0 | J22: 0 | K22: 1 | M22: =SUM(H22:K22) -> 1 | U22: Kontrolle: ZufallsPermutation
A23: 17 | C23: =ZufallsPermutation(C$6,D$6,E$6,F$6) -> 3 | D23: 4 | E23: 2 | F23: 1 | H23: 0 | I23: 0 | J23: 0 | K23: 0 | M23: 0 | U23: 1 | V23: =FREQUENCY(C7:C36,$U23:$U26) -> 9 | W23: =FREQUENCY(D7:D36,$U23:$U26) -> 6 | X23: =FREQUENCY(E7:E36,$U23:$U26) -> 4 | Y23: =FREQUENCY(F7:F36,$U23:$U26) -> 11
A24: 18 | C24: =ZufallsPermutation(C$6,D$6,E$6,F$6) -> 1 | D24: 3 | E24: 4 | F24: 2 | H24: 1 | I24: 0 | J24: 0 | K24: 0 | M24: 1 | U24: 2 | V24: 8 | W24: 8 | X24: 5 | Y24: 9
A25: 19 | C25: =ZufallsPermutation(C$6,D$6,E$6,F$6) -> 3 | D25: 1 | E25: 4 | F25: 2 | H25: 0 | I25: 0 | J25: 0 | K25: 0 | M25: 0 | U25: 3 | V25: 8 | W25: 8 | X25: 9 | Y25: 5
A26: 20 | C26: =ZufallsPermutation(C$6,D$6,E$6,F$6) -> 2 | D26: 4 | E26: 3 | F26: 1 | H26: 0 | I26: 0 | J26: 1 | K26: 0 | M26: 1 | U26: 4 | V26: 5 | W26: 8 | X26: 12 | Y26: 5
A27: 21 | C27: =ZufallsPermutation(C$6,D$6,E$6,F$6) -> 2 | D27: 4 | E27: 3 | F27: 1 | H27: 0 | I27: 0 | J27: 1 | K27: 0 | M27: 1
A28: 22 | C28: =ZufallsPermutation(C$6,D$6,E$6,F$6) -> 3 | D28: 4 | E28: 1 | F28: 2 | H28: 0 | I28: 0 | J28: 0 | K28: 0 | M28: 0
A29: 23 | C29: =ZufallsPermutation(C$6,D$6,E$6,F$6) -> 2 | D29: 4 | E29: 3 | F29: 1 | H29: 0 | I29: 0 | J29: 1 | K29: 0 | M29: 1
A30: 24 | C30: =ZufallsPermutation(C$6,D$6,E$6,F$6) -> 3 | D30: 2 | E30: 4 | F30: 1 | H30: 0 | I30: 1 | J30: 0 | K30: 0 | M30: 1
A31: 25 | C31: =ZufallsPermutation(C$6,D$6,E$6,F$6) -> 4 | D31: 2 | E31: 3 | F31: 1 | H31: 0 | I31: 1 | J31: 1 | K31: 0 | M31: 2
A32: 26 | C32: =ZufallsPermutation(C$6,D$6,E$6,F$6) -> 4 | D32: 2 | E32: 3 | F32: 1 | H32: 0 | I32: 1 | J32: 1 | K32: 0 | M32: 2
A33: 27 | C33: =ZufallsPermutation(C$6,D$6,E$6,F$6) -> 4 | D33: 3 | E33: 2 | F33: 1 | H33: 0 | I33: 0 | J33: 0 | K33: 0 | M33: 0
A34: 28 | C34: =ZufallsPermutation(C$6,D$6,E$6,F$6) -> 1 | D34: 2 | E34: 4 | F34: 3 | H34: 1 | I34: 1 | J34: 0 | K34: 0 | M34: 2
A35: 29 | C35: =ZufallsPermutation(C$6,D$6,E$6,F$6) -> 3 | D35: 1 | E35: 4 | F35: 2 | H35: 0 | I35: 0 | J35: 0 | K35: 0 | M35: 0
A36: 30 | C36: =ZufallsPermutation(C$6,D$6,E$6,F$6) -> 4 | D36: 3 | E36: 2 | F36: 1 | H36: 0 | I36: 0 | J36: 0 | K36: 0 | M36: 0

Sheet Gruppen
B1: Simulation Schokotest (Gruppen)
A3: 100 Testgruppen mit 30 Nullschmeckern erzielen durchschnittlich ... Treffer
A4: 30 | B4: 0.375 | C4: 0.3333333333 | D4: 0.25 | E4: 0 | F4: 0.04166666667
A5: n | B5: 0 | C5: 1 | D5: 2 | E5: 3 | F5: 4 | G5: mittlere Trefferzahl der Gruppe
A6: 1 | B6: =Augenzahlenverteilung(A$4,B$4,C$4,D$4,E$4,F$4)/A$4 -> 0.3333333333 | C6: 0.3666666667 | D6: 0.1666666667 | E6: 0 | F6: 0.1333333333 | G6: =SUM(B$5:F$5*B6:F6) -> 1.233333333 | K6: unteres Quartil | L6: =QUARTILE(Treffermittel,1) -> 0.8666666667
A7: 2 | B7: =Augenzahlenverteilung(A$4,B$4,C$4,D$4,E$4,F$4)/A$4 -> 0.4 | C7: 0.4333333333 | D7: 0.1333333333 | E7: 0 | F7: 0.03333333333 | G7: =SUM(B$5:F$5*B7:F7) -> 0.8333333333 | K7: Minimum | L7: =MIN(Treffermittel) -> 0.5666666667
A8: 3 | B8: =Augenzahlenverteilung(A$4,B$4,C$4,D$4,E$4,F$4)/A$4 -> 0.3 | C8: 0.4 | D8: 0.3 | E8: 0 | F8: 0 | G8: =SUM(B$5:F$5*B8:F8) -> 1 | K8: arithmetisches Mittel | L8: =AVERAGE(Treffermittel) -> 0.9966666667
A9: 4 | B9: =Augenzahlenverteilung(A$4,B$4,C$4,D$4,E$4,F$4)/A$4 -> 0.4666666667 | C9: 0.3 | D9: 0.2333333333 | E9: 0 | F9: 0 | G9: =SUM(B$5:F$5*B9:F9) -> 0.7666666667 | K9: Median | L9: =QUARTILE(Treffermittel,2) -> 1
A10: 5 | B10: =Augenzahlenverteilung(A$4,B$4,C$4,D$4,E$4,F$4)/A$4 -> 0.4333333333 | C10: 0.2333333333 | D10: 0.2666666667 | E10: 0 | F10: 0.06666666667 | G10: =SUM(B$5:F$5*B10:F10) -> 1.033333333 | K10: Maximum | L10: =MAX(Treffermittel) -> 1.666666667
A11: 6 | B11: =Augenzahlenverteilung(A$4,B$4,C$4,D$4,E$4,F$4)/A$4 -> 0.4333333333 | C11: 0.2 | D11: 0.3333333333 | E11: 0 | F11: 0.03333333333 | G11: =SUM(B$5:F$5*B11:F11) -> 1 | K11: oberes Quartil | L11: =QUARTILE(Treffermittel,3) -> 1.1
A12: 7 | B12: =Augenzahlenverteilung(A$4,B$4,C$4,D$4,E$4,F$4)/A$4 -> 0.6333333333 | C12: 0.2333333333 | D12: 0.1 | E12: 0 | F12: 0.03333333333 | G12: =SUM(B$5:F$5*B12:F12) -> 0.5666666667
A13: 8 | B13: =Augenzahlenverteilung(A$4,B$4,C$4,D$4,E$4,F$4)/A$4 -> 0.4666666667 | C13: 0.2 | D13: 0.3333333333 | E13: 0 | F13: 0 | G13: =SUM(B$5:F$5*B13:F13) -> 0.8666666667
A14: 9 | B14: =Augenzahlenverteilung(A$4,B$4,C$4,D$4,E$4,F$4)/A$4 -> 0.4 | C14: 0.3666666667 | D14: 0.2 | E14: 0 | F14: 0.03333333333 | G14: =SUM(B$5:F$5*B14:F14) -> 0.9
A15: 10 | B15: =Augenzahlenverteilung(A$4,B$4,C$4,D$4,E$4,F$4)/A$4 -> 0.3666666667 | C15: 0.3333333333 | D15: 0.2333333333 | E15: 0 | F15: 0.06666666667 | G15: =SUM(B$5:F$5*B15:F15) -> 1.066666667
A16: 11 | B16: =Augenzahlenverteilung(A$4,B$4,C$4,D$4,E$4,F$4)/A$4 -> 0.5666666667 | C16: 0.2666666667 | D16: 0.1666666667 | E16: 0 | F16: 0 | G16: =SUM(B$5:F$5*B16:F16) -> 0.6 | I16: 0 | J16: =FREQUENCY(Treffermittel,I16:I36)/COUNT(Treffermittel) -> 0
A17: 12 | B17: =Augenzahlenverteilung(A$4,B$4,C$4,D$4,E$4,F$4)/A$4 -> 0.3 | C17: 0.3 | D17: 0.4 | E17: 0 | F17: 0 | G17: =SUM(B$5:F$5*B17:F17) -> 1.1 | I17: 0.15 | J17: 0
A18: 13 | B18: =Augenzahlenverteilung(A$4,B$4,C$4,D$4,E$4,F$4)/A$4 -> 0.5 | C18: 0.3 | D18: 0.1666666667 | E18: 0 | F18: 0.03333333333 | G18: =SUM(B$5:F$5*B18:F18) -> 0.7666666667 | I18: 0.3 | J18: 0
A19: 14 | B19: =Augenzahlenverteilung(A$4,B$4,C$4,D$4,E$4,F$4)/A$4 -> 0.4 | C19: 0.3666666667 | D19: 0.2333333333 | E19: 0 | F19: 0 | G19: =SUM(B$5:F$5*B19:F19) -> 0.8333333333 | I19: 0.45 | J19: 0
A20: 15 | B20: =Augenzahlenverteilung(A$4,B$4,C$4,D$4,E$4,F$4)/A$4 -> 0.3333333333 | C20: 0.4 | D20: 0.2666666667 | E20: 0 | F20: 0 | G20: =SUM(B$5:F$5*B20:F20) -> 0.9333333333 | I20: 0.6 | J20: 0.02
A21: 16 | B21: =Augenzahlenverteilung(A$4,B$4,C$4,D$4,E$4,F$4)/A$4 -> 0.4666666667 | C21: 0.2666666667 | D21: 0.2 | E21: 0 | F21: 0.06666666667 | G21: =SUM(B$5:F$5*B21:F21) -> 0.9333333333 | I21: 0.75 | J21: 0.05
A22: 17 | B22: =Augenzahlenverteilung(A$4,B$4,C$4,D$4,E$4,F$4)/A$4 -> 0.3 | C22: 0.4666666667 | D22: 0.2333333333 | E22: 0 | F22: 0 | G22: =SUM(B$5:F$5*B22:F22) -> 0.9333333333 | I22: 0.9 | J22: 0.24
A23: 18 | B23: =Augenzahlenverteilung(A$4,B$4,C$4,D$4,E$4,F$4)/A$4 -> 0.5333333333 | C23: 0.2666666667 | D23: 0.2 | E23: 0 | F23: 0 | G23: =SUM(B$5:F$5*B23:F23) -> 0.6666666667 | I23: 1.05 | J23: 0.33
A24: 19 | B24: =Augenzahlenverteilung(A$4,B$4,C$4,D$4,E$4,F$4)/A$4 -> 0.3 | C24: 0.4 | D24: 0.2666666667 | E24: 0 | F24: 0.03333333333 | G24: =SUM(B$5:F$5*B24:F24) -> 1.066666667 | I24: 1.2 | J24: 0.25
A25: 20 | B25: =Augenzahlenverteilung(A$4,B$4,C$4,D$4,E$4,F$4)/A$4 -> 0.4 | C25: 0.4333333333 | D25: 0.1666666667 | E25: 0 | F25: 0 | G25: =SUM(B$5:F$5*B25:F25) -> 0.7666666667 | I25: 1.35 | J25: 0.08
A26: 21 | B26: =Augenzahlenverteilung(A$4,B$4,C$4,D$4,E$4,F$4)/A$4 -> 0.3 | C26: 0.3 | D26: 0.3333333333 | E26: 0 | F26: 0.06666666667 | G26: =SUM(B$5:F$5*B26:F26) -> 1.233333333 | I26: 1.5 | J26: 0.02
A27: 22 | B27: =Augenzahlenverteilung(A$4,B$4,C$4,D$4,E$4,F$4)/A$4 -> 0.3666666667 | C27: 0.3333333333 | D27: 0.2666666667 | E27: 0 | F27: 0.03333333333 | G27: =SUM(B$5:F$5*B27:F27) -> 1 | I27: 1.65 | J27: 0
A28: 23 | B28: =Augenzahlenverteilung(A$4,B$4,C$4,D$4,E$4,F$4)/A$4 -> 0.3666666667 | C28: 0.2666666667 | D28: 0.3333333333 | E28: 0 | F28: 0.03333333333 | G28: =SUM(B$5:F$5*B28:F28) -> 1.066666667 | I28: 1.8 | J28: 0.01
A29: 24 | B29: =Augenzahlenverteilung(A$4,B$4,C$4,D$4,E$4,F$4)/A$4 -> 0.5 | C29: 0.3 | D29: 0.1333333333 | E29: 0 | F29: 0.06666666667 | G29: =SUM(B$5:F$5*B29:F29) -> 0.8333333333 | I29: 1.95 | J29: 0
A30: 25 | B30: =Augenzahlenverteilung(A$4,B$4,C$4,D$4,E$4,F$4)/A$4 -> 0.4 | C30: 0.3666666667 | D30: 0.1666666667 | E30: 0 | F30: 0.06666666667 | G30: =SUM(B$5:F$5*B30:F30) -> 0.9666666667 | I30: 2.1 | J30: 0
A31: 26 | B31: =Augenzahlenverteilung(A$4,B$4,C$4,D$4,E$4,F$4)/A$4 -> 0.3333333333 | C31: 0.4333333333 | D31: 0.2333333333 | E31: 0 | F31: 0 | G31: =SUM(B$5:F$5*B31:F31) -> 0.9 | I31: 2.25 | J31: 0
A32: 27 | B32: =Augenzahlenverteilung(A$4,B$4,C$4,D$4,E$4,F$4)/A$4 -> 0.4333333333 | C32: 0.3333333333 | D32: 0.2 | E32: 0 | F32: 0.03333333333 | G32: =SUM(B$5:F$5*B32:F32) -> 0.8666666667 | I32: 2.4 | J32: 0
A33: 28 | B33: =Augenzahlenverteilung(A$4,B$4,C$4,D$4,E$4,F$4)/A$4 -> 0.4333333333 | C33: 0.3666666667 | D33: 0.1666666667 | E33: 0 | F33: 0.03333333333 | G33: =SUM(B$5:F$5*B33:F33) -> 0.8333333333 | I33: 2.55 | J33: 0
A34: 29 | B34: =Augenzahlenverteilung(A$4,B$4,C$4,D$4,E$4,F$4)/A$4 -> 0.3666666667 | C34: 0.3333333333 | D34: 0.3 | E34: 0 | F34: 0 | G34: =SUM(B$5:F$5*B34:F34) -> 0.9333333333 | I34: 2.7 | J34: 0
A35: 30 | B35: =Augenzahlenverteilung(A$4,B$4,C$4,D$4,E$4,F$4)/A$4 -> 0.3333333333 | C35: 0.3 | D35: 0.3666666667 | E35: 0 | F35: 0 | G35: =SUM(B$5:F$5*B35:F35) -> 1.033333333 | I35: 2.85 | J35: 0
A36: 31 | B36: =Augenzahlenverteilung(A$4,B$4,C$4,D$4,E$4,F$4)/A$4 -> 0.3333333333 | C36: 0.4 | D36: 0.2333333333 | E36: 0 | F36: 0.03333333333 | G36: =SUM(B$5:F$5*B36:F36) -> 1 | I36: 3 | J36: 0
A37: 32 | B37: =Augenzahlenverteilung(A$4,B$4,C$4,D$4,E$4,F$4)/A$4 -> 0.3666666667 | C37: 0.3666666667 | D37: 0.2333333333 | E37: 0 | F37: 0.03333333333 | G37: =SUM(B$5:F$5*B37:F37) -> 0.9666666667
A38: 33 | B38: =Augenzahlenverteilung(A$4,B$4,C$4,D$4,E$4,F$4)/A$4 -> 0.4666666667 | C38: 0.2333333333 | D38: 0.2333333333 | E38: 0 | F38: 0.06666666667 | G38: =SUM(B$5:F$5*B38:F38) -> 0.9666666667
A39: 34 | B39: =Augenzahlenverteilung(A$4,B$4,C$4,D$4,E$4,F$4)/A$4 -> 0.4 | C39: 0.3 | D39: 0.2666666667 | E39: 0 | F39: 0.03333333333 | G39: =SUM(B$5:F$5*B39:F39) -> 0.9666666667
A40: 35 | B40: =Augenzahlenverteilung(A$4,B$4,C$4,D$4,E$4,F$4)/A$4 -> 0.3333333333 | C40: 0.3333333333 | D40: 0.3333333333 | E40: 0 | F40: 0 | G40: =SUM(B$5:F$5*B40:F40) -> 1
A41: 36 | B41: =Augenzahlenverteilung(A$4,B$4,C$4,D$4,E$4,F$4)/A$4 -> 0.3 | C41: 0.3666666667 | D41: 0.2666666667 | E41: 0 | F41: 0.06666666667 | G41: =SUM(B$5:F$5*B41:F41) -> 1.166666667
A42: 37 | B42: =Augenzahlenverteilung(A$4,B$4,C$4,D$4,E$4,F$4)/A$4 -> 0.3333333333 | C42: 0.3666666667 | D42: 0.3 | E42: 0 | F42: 0 | G42: =SUM(B$5:F$5*B42:F42) -> 0.9666666667
A43: 38 | B43: =Augenzahlenverteilung(A$4,B$4,C$4,D$4,E$4,F$4)/A$4 -> 0.3333333333 | C43: 0.3333333333 | D43: 0.2333333333 | E43: 0 | F43: 0.1 | G43: =SUM(B$5:F$5*B43:F43) -> 1.2
A44: 39 | B44: =Augenzahlenverteilung(A$4,B$4,C$4,D$4,E$4,F$4)/A$4 -> 0.1333333333 | C44: 0.3333333333 | D44: 0.4 | E44: 0 | F44: 0.1333333333 | G44: =SUM(B$5:F$5*B44:F44) -> 1.666666667
A45: 40 | B45: =Augenzahlenverteilung(A$4,B$4,C$4,D$4,E$4,F$4)/A$4 -> 0.2333333333 | C45: 0.3333333333 | D45: 0.4333333333 | E45: 0 | F45: 0 | G45: =SUM(B$5:F$5*B45:F45) -> 1.2
A46: 41 | B46: =Augenzahlenverteilung(A$4,B$4,C$4,D$4,E$4,F$4)/A$4 -> 0.3333333333 | C46: 0.3666666667 | D46: 0.2333333333 | E46: 0 | F46: 0.06666666667 | G46: =SUM(B$5:F$5*B46:F46) -> 1.1
A47: 42 | B47: =Augenzahlenverteilung(A$4,B$4,C$4,D$4,E$4,F$4)/A$4 -> 0.4666666667 | C47: 0.3666666667 | D47: 0.1666666667 | E47: 0 | F47: 0 | G47: =SUM(B$5:F$5*B47:F47) -> 0.7
A48: 43 | B48: =Augenzahlenverteilung(A$4,B$4,C$4,D$4,E$4,F$4)/A$4 -> 0.4 | C48: 0.2333333333 | D48: 0.3666666667 | E48: 0 | F48: 0 | G48: =SUM(B$5:F$5*B48:F48) -> 0.9666666667
A49: 44 | B49: =Augenzahlenverteilung(A$4,B$4,C$4,D$4,E$4,F$4)/A$4 -> 0.4666666667 | C49: 0.2666666667 | D49: 0.1666666667 | E49: 0 | F49: 0.1 | G49: =SUM(B$5:F$5*B49:F49) -> 1
A50: 45 | B50: =Augenzahlenverteilung(A$4,B$4,C$4,D$4,E$4,F$4)/A$4 -> 0.3666666667 | C50: 0.3666666667 | D50: 0.2333333333 | E50: 0 | F50: 0.03333333333 | G50: =SUM(B$5:F$5*B50:F50) -> 0.9666666667
A51: 46 | B51: =Augenzahlenverteilung(A$4,B$4,C$4,D$4,E$4,F$4)/A$4 -> 0.4 | C51: 0.1666666667 | D51: 0.3333333333 | E51: 0 | F51: 0.1 | G51: =SUM(B$5:F$5*B51:F51) -> 1.233333333
A52: 47 | B52: =Augenzahlenverteilung(A$4,B$4,C$4,D$4,E$4,F$4)/A$4 -> 0.3333333333 | C52: 0.3 | D52: 0.3333333333 | E52: 0 | F52: 0.03333333333 | G52: =SUM(B$5:F$5*B52:F52) -> 1.1
A53: 48 | B53: =Augenzahlenverteilung(A$4,B$4,C$4,D$4,E$4,F$4)/A$4 -> 0.4333333333 | C53: 0.1666666667 | D53: 0.3666666667 | E53: 0 | F53: 0.03333333333 | G53: =SUM(B$5:F$5*B53:F53) -> 1.033333333
A54: 49 | B54: =Augenzahlenverteilung(A$4,B$4,C$4,D$4,E$4,F$4)/A$4 -> 0.4 | C54: 0.2333333333 | D54: 0.3333333333 | E54: 0 | F54: 0.03333333333 | G54: =SUM(B$5:F$5*B54:F54) -> 1.033333333
A55: 50 | B55: =Augenzahlenverteilung(A$4,B$4,C$4,D$4,E$4,F$4)/A$4 -> 0.4 | C55: 0.4 | D55: 0.1666666667 | E55: 0 | F55: 0.03333333333 | G55: =SUM(B$5:F$5*B55:F55) -> 0.8666666667
A56: 51 | B56: =Augenzahlenverteilung(A$4,B$4,C$4,D$4,E$4,F$4)/A$4 -> 0.3 | C56: 0.4 | D56: 0.2333333333 | E56: 0 | F56: 0.06666666667 | G56: =SUM(B$5:F$5*B56:F56) -> 1.133333333
A57: 52 | B57: =Augenzahlenverteilung(A$4,B$4,C$4,D$4,E$4,F$4)/A$4 -> 0.3666666667 | C57: 0.4333333333 | D57: 0.2 | E57: 0 | F57: 0 | G57: =SUM(B$5:F$5*B57:F57) -> 0.8333333333
A58: 53 | B58: =Augenzahlenverteilung(A$4,B$4,C$4,D$4,E$4,F$4)/A$4 -> 0.2 | C58: 0.3333333333 | D58: 0.4333333333 | E58: 0 | F58: 0.03333333333 | G58: =SUM(B$5:F$5*B58:F58) -> 1.333333333
A59: 54 | B59: =Augenzahlenverteilung(A$4,B$4,C$4,D$4,E$4,F$4)/A$4 -> 0.3666666667 | C59: 0.3 | D59: 0.2666666667 | E59: 0 | F59: 0.06666666667 | G59: =SUM(B$5:F$5*B59:F59) -> 1.1
A60: 55 | B60: =Augenzahlenverteilung(A$4,B$4,C$4,D$4,E$4,F$4)/A$4 -> 0.4666666667 | C60: 0.1666666667 | D60: 0.3 | E60: 0 | F60: 0.06666666667 | G60: =SUM(B$5:F$5*B60:F60) -> 1.033333333
A61: 56 | B61: =Augenzahlenverteilung(A$4,B$4,C$4,D$4,E$4,F$4)/A$4 -> 0.3333333333 | C61: 0.2666666667 | D61: 0.3666666667 | E61: 0 | F61: 0.03333333333 | G61: =SUM(B$5:F$5*B61:F61) -> 1.133333333
A62: 57 | B62: =Augenzahlenverteilung(A$4,B$4,C$4,D$4,E$4,F$4)/A$4 -> 0.2666666667 | C62: 0.3666666667 | D62: 0.3666666667 | E62: 0 | F62: 0 | G62: =SUM(B$5:F$5*B62:F62) -> 1.1
A63: 58 | B63: =Augenzahlenverteilung(A$4,B$4,C$4,D$4,E$4,F$4)/A$4 -> 0.4666666667 | C63: 0.2666666667 | D63: 0.2666666667 | E63: 0 | F63: 0 | G63: =SUM(B$5:F$5*B63:F63) -> 0.8
A64: 59 | B64: =Augenzahlenverteilung(A$4,B$4,C$4,D$4,E$4,F$4)/A$4 -> 0.2666666667 | C64: 0.3666666667 | D64: 0.2666666667 | E64: 0 | F64: 0.1 | G64: =SUM(B$5:F$5*B64:F64) -> 1.3
A65: 60 | B65: =Augenzahlenverteilung(A$4,B$4,C$4,D$4,E$4,F$4)/A$4 -> 0.2666666667 | C65: 0.4333333333 | D65: 0.2666666667 | E65: 0 | F65: 0.03333333333 | G65: =SUM(B$5:F$5*B65:F65) -> 1.1
A66: 61 | B66: =Augenzahlenverteilung(A$4,B$4,C$4,D$4,E$4,F$4)/A$4 -> 0.3666666667 | C66: 0.3 | D66: 0.2333333333 | E66: 0 | F66: 0.1 | G66: =SUM(B$5:F$5*B66:F66) -> 1.166666667
A67: 62 | B67: =Augenzahlenverteilung(A$4,B$4,C$4,D$4,E$4,F$4)/A$4 -> 0.3333333333 | C67: 0.3 | D67: 0.2666666667 | E67: 0 | F67: 0.1 | G67: =SUM(B$5:F$5*B67:F67) -> 1.233333333
A68: 63 | B68: =Augenzahlenverteilung(A$4,B$4,C$4,D$4,E$4,F$4)/A$4 -> 0.5666666667 | C68: 0.2333333333 | D68: 0.1666666667 | E68: 0 | F68: 0.03333333333 | G68: =SUM(B$5:F$5*B68:F68) -> 0.7
A69: 64 | B69: =Augenzahlenverteilung(A$4,B$4,C$4,D$4,E$4,F$4)/A$4 -> 0.3 | C69: 0.4666666667 | D69: 0.1333333333 | E69: 0 | F69: 0.1 | G69: =SUM(B$5:F$5*B69:F69) -> 1.133333333
A70: 65 | B70: =Augenzahlenverteilung(A$4,B$4,C$4,D$4,E$4,F$4)/A$4 -> 0.4333333333 | C70: 0.3666666667 | D70: 0.1666666667 | E70: 0 | F70: 0.03333333333 | G70: =SUM(B$5:F$5*B70:F70) -> 0.8333333333
A71: 66 | B71: =Augenzahlenverteilung(A$4,B$4,C$4,D$4,E$4,F$4)/A$4 -> 0.4 | C71: 0.4 | D71: 0.1666666667 | E71: 0 | F71: 0.03333333333 | G71: =SUM(B$5:F$5*B71:F71) -> 0.8666666667
A72: 67 | B72: =Augenzahlenverteilung(A$4,B$4,C$4,D$4,E$4,F$4)/A$4 -> 0.3666666667 | C72: 0.4666666667 | D72: 0.1666666667 | E72: 0 | F72: 0 | G72: =SUM(B$5:F$5*B72:F72) -> 0.8
A73: 68 | B73: =Augenzahlenverteilung(A$4,B$4,C$4,D$4,E$4,F$4)/A$4 -> 0.3666666667 | C73: 0.4 | D73: 0.2333333333 | E73: 0 | F73: 0 | G73: =SUM(B$5:F$5*B73:F73) -> 0.8666666667
A74: 69 | B74: =Augenzahlenverteilung(A$4,B$4,C$4,D$4,E$4,F$4)/A$4 -> 0.4666666667 | C74: 0.4333333333 | D74: 0.1 | E74: 0 | F74: 0 | G74: =SUM(B$5:F$5*B74:F74) -> 0.6333333333
A75: 70 | B75: =Augenzahlenverteilung(A$4,B$4,C$4,D$4,E$4,F$4)/A$4 -> 0.3333333333 | C75: 0.3666666667 | D75: 0.2 | E75: 0 | F75: 0.1 | G75: =SUM(B$5:F$5*B75:F75) -> 1.166666667
A76: 71 | B76: =Augenzahlenverteilung(A$4,B$4,C$4,D$4,E$4,F$4)/A$4 -> 0.4666666667 | C76: 0.2333333333 | D76: 0.2333333333 | E76: 0 | F76: 0.06666666667 | G76: =SUM(B$5:F$5*B76:F76) -> 0.9666666667
A77: 72 | B77: =Augenzahlenverteilung(A$4,B$4,C$4,D$4,E$4,F$4)/A$4 -> 0.3 | C77: 0.5 | D77: 0.1333333333 | E77: 0 | F77: 0.06666666667 | G77: =SUM(B$5:F$5*B77:F77) -> 1.033333333
A78: 73 | B78: =Augenzahlenverteilung(A$4,B$4,C$4,D$4,E$4,F$4)/A$4 -> 0.3666666667 | C78: 0.3 | D78: 0.3 | E78: 0 | F78: 0.03333333333 | G78: =SUM(B$5:F$5*B78:F78) -> 1.033333333
A79: 74 | B79: =Augenzahlenverteilung(A$4,B$4,C$4,D$4,E$4,F$4)/A$4 -> 0.2333333333 | C79: 0.3333333333 | D79: 0.4 | E79: 0 | F79: 0.03333333333 | G79: =SUM(B$5:F$5*B79:F79) -> 1.266666667
A80: 75 | B80: =Augenzahlenverteilung(A$4,B$4,C$4,D$4,E$4,F$4)/A$4 -> 0.2333333333 | C80: 0.5 | D80: 0.2 | E80: 0 | F80: 0.06666666667 | G80: =SUM(B$5:F$5*B80:F80) -> 1.166666667
A81: 76 | B81: =Augenzahlenverteilung(A$4,B$4,C$4,D$4,E$4,F$4)/A$4 -> 0.2333333333 | C81: 0.4666666667 | D81: 0.2666666667 | E81: 0 | F81: 0.03333333333 | G81: =SUM(B$5:F$5*B81:F81) -> 1.133333333
A82: 77 | B82: =Augenzahlenverteilung(A$4,B$4,C$4,D$4,E$4,F$4)/A$4 -> 0.2333333333 | C82: 0.3666666667 | D82: 0.3 | E82: 0 | F82: 0.1 | G82: =SUM(B$5:F$5*B82:F82) -> 1.366666667
A83: 78 | B83: =Augenzahlenverteilung(A$4,B$4,C$4,D$4,E$4,F$4)/A$4 -> 0.4333333333 | C83: 0.2333333333 | D83: 0.2666666667 | E83: 0 | F83: 0.06666666667 | G83: =SUM(B$5:F$5*B83:F83) -> 1.033333333
A84: 79 | B84: =Augenzahlenverteilung(A$4,B$4,C$4,D$4,E$4,F$4)/A$4 -> 0.3 | C84: 0.4 | D84: 0.2666666667 | E84: 0 | F84: 0.03333333333 | G84: =SUM(B$5:F$5*B84:F84) -> 1.066666667
A85: 80 | B85: =Augenzahlenverteilung(A$4,B$4,C$4,D$4,E$4,F$4)/A$4 -> 0.3 | C85: 0.4 | D85: 0.2666666667 | E85: 0 | F85: 0.03333333333 | G85: =SUM(B$5:F$5*B85:F85) -> 1.066666667
A86: 81 | B86: =Augenzahlenverteilung(A$4,B$4,C$4,D$4,E$4,F$4)/A$4 -> 0.5333333333 | C86: 0.03333333333 | D86: 0.3 | E86: 0 | F86: 0.1333333333 | G86: =SUM(B$5:F$5*B86:F86) -> 1.166666667
A87: 82 | B87: =Augenzahlenverteilung(A$4,B$4,C$4,D$4,E$4,F$4)/A$4 -> 0.3666666667 | C87: 0.3333333333 | D87: 0.3 | E87: 0 | F87: 0 | G87: =SUM(B$5:F$5*B87:F87) -> 0.9333333333
A88: 83 | B88: =Augenzahlenverteilung(A$4,B$4,C$4,D$4,E$4,F$4)/A$4 -> 0.2666666667 | C88: 0.4 | D88: 0.3333333333 | E88: 0 | F88: 0 | G88: =SUM(B$5:F$5*B88:F88) -> 1.066666667
A89: 84 | B89: =Augenzahlenverteilung(A$4,B$4,C$4,D$4,E$4,F$4)/A$4 -> 0.5 | C89: 0.2666666667 | D89: 0.2 | E89: 0 | F89: 0.03333333333 | G89: =SUM(B$5:F$5*B89:F89) -> 0.8
A90: 85 | B90: =Augenzahlenverteilung(A$4,B$4,C$4,D$4,E$4,F$4)/A$4 -> 0.4333333333 | C90: 0.3333333333 | D90: 0.2333333333 | E90: 0 | F90: 0 | G90: =SUM(B$5:F$5*B90:F90) -> 0.8
A91: 86 | B91: =Augenzahlenverteilung(A$4,B$4,C$4,D$4,E$4,F$4)/A$4 -> 0.4333333333 | C91: 0.2666666667 | D91: 0.3 | E91: 0 | F91: 0 | G91: =SUM(B$5:F$5*B91:F91) -> 0.8666666667
A92: 87 | B92: =Augenzahlenverteilung(A$4,B$4,C$4,D$4,E$4,F$4)/A$4 -> 0.2666666667 | C92: 0.4666666667 | D92: 0.2666666667 | E92: 0 | F92: 0 | G92: =SUM(B$5:F$5*B92:F92) -> 1
A93: 88 | B93: =Augenzahlenverteilung(A$4,B$4,C$4,D$4,E$4,F$4)/A$4 -> 0.5 | C93: 0.2 | D93: 0.2666666667 | E93: 0 | F93: 0.03333333333 | G93: =SUM(B$5:F$5*B93:F93) -> 0.8666666667
A94: 89 | B94: =Augenzahlenverteilung(A$4,B$4,C$4,D$4,E$4,F$4)/A$4 -> 0.1333333333 | C94: 0.4333333333 | D94: 0.4 | E94: 0 | F94: 0.03333333333 | G94: =SUM(B$5:F$5*B94:F94) -> 1.366666667
A95: 90 | B95: =Augenzahlenverteilung(A$4,B$4,C$4,D$4,E$4,F$4)/A$4 -> 0.3333333333 | C95: 0.2666666667 | D95: 0.4 | E95: 0 | F95: 0 | G95: =SUM(B$5:F$5*B95:F95) -> 1.066666667
A96: 91 | B96: =Augenzahlenverteilung(A$4,B$4,C$4,D$4,E$4,F$4)/A$4 -> 0.2333333333 | C96: 0.4333333333 | D96: 0.3333333333 | E96: 0 | F96: 0 | G96: =SUM(B$5:F$5*B96:F96) -> 1.1
A97: 92 | B97: =Augenzahlenverteilung(A$4,B$4,C$4,D$4,E$4,F$4)/A$4 -> 0.4666666667 | C97: 0.2666666667 | D97: 0.2 | E97: 0 | F97: 0.06666666667 | G97: =SUM(B$5:F$5*B97:F97) -> 0.9333333333
A98: 93 | B98: =Augenzahlenverteilung(A$4,B$4,C$4,D$4,E$4,F$4)/A$4 -> 0.4 | C98: 0.3333333333 | D98: 0.2 | E98: 0 | F98: 0.06666666667 | G98: =SUM(B$5:F$5*B98:F98) -> 1
A99: 94 | B99: =Augenzahlenverteilung(A$4,B$4,C$4,D$4,E$4,F$4)/A$4 -> 0.4666666667 | C99: 0.3333333333 | D99: 0.1333333333 | E99: 0 | F99: 0.06666666667 | G99: =SUM(B$5:F$5*B99:F99) -> 0.8666666667
A100: 95 | B100: =Augenzahlenverteilung(A$4,B$4,C$4,D$4,E$4,F$4)/A$4 -> 0.4666666667 | C100: 0.2333333333 | D100: 0.2 | E100: 0 | F100: 0.1 | G100: =SUM(B$5:F$5*B100:F100) -> 1.033333333
A101: 96 | B101: =Augenzahlenverteilung(A$4,B$4,C$4,D$4,E$4,F$4)/A$4 -> 0.3 | C101: 0.4333333333 | D101: 0.2333333333 | E101: 0 | F101: 0.03333333333 | G101: =SUM(B$5:F$5*B101:F101) -> 1.033333333
A102: 97 | B102: =Augenzahlenverteilung(A$4,B$4,C$4,D$4,E$4,F$4)/A$4 -> 0.5333333333 | C102: 0.2333333333 | D102: 0.2333333333 | E102: 0 | F102: 0 | G102: =SUM(B$5:F$5*B102:F102) -> 0.7
A103: 98 | B103: =Augenzahlenverteilung(A$4,B$4,C$4,D$4,E$4,F$4)/A$4 -> 0.3 | C103: 0.3333333333 | D103: 0.3333333333 | E103: 0 | F103: 0.03333333333 | G103: =SUM(B$5:F$5*B103:F103) -> 1.133333333
A104: 99 | B104: =Augenzahlenverteilung(A$4,B$4,C$4,D$4,E$4,F$4)/A$4 -> 0.4333333333 | C104: 0.3333333333 | D104: 0.1333333333 | E104: 0 | F104: 0.1 | G104: =SUM(B$5:F$5*B104:F104) -> 1
A105: 100 | B105: =Augenzahlenverteilung(A$4,B$4,C$4,D$4,E$4,F$4)/A$4 -> 0.3333333333 | C105: 0.5 | D105: 0.1333333333 | E105: 0 | F105: 0.03333333333 | G105: =SUM(B$5:F$5*B105:F105) -> 0.9
